bitfinex/quotes_ETHUSD_20211001
["timestamp","ask_amount","ask_price","bid_price","bid_amount"]
[1633121085303,3.2279747,3283.7,3283.6,1.509]
[1633121085502,3.3495747,3283.7,3283.6,1.509]
[1633121085707,0.182,3283.7,3283.6,1.509]
[1633121086101,0.2988,3283.7,3283.6,1.509]
[1633121086302,0.182,3283.7,3283.6,1.509]
[1633121087105,0.2964,3283.7,3283.6,1.509]
[1633121087363,0.182,3283.7,3283.6,1.509]
[1633121092969,0.2964,3283.7,3283.6,1.509]
[1633121093170,0.182,3283.7,3283.6,1.509]
[1633121093978,5.03865413,3283.7,3283.6,1.509]
[1633121094176,4.3,3283.6,3283.0,0.006]
[1633121094376,0.182,3283.5,3282.2,0.009]
[1633121094577,0.34157662,3283.4,3282.3,0.20497088]
[1633121094776,0.34157662,3283.4,3282.4,0.20497422]
[1633121094777,0.182,3283.3,3282.4,0.20497422]
[1633121094977,6.84561301,3282.9,3282.5,0.2049832]
[1633121095177,0.182,3282.8,3282.5,0.2139832]
[1633121095376,0.182,3282.8,3282.6,0.21094099]
[1633121095578,0.182,3282.8,3282.7,0.20493021]
[1633121095777,0.182,3282.8,3282.7,0.21093021]
[1633121096381,0.25,3283.3,3282.7,0.21093021]
[1633121096582,0.25,3283.3,3282.8,0.20476947]
[1633121096779,0.25,3283.3,3282.8,0.21076947]
[1633121096978,0.25,3283.3,3282.9,0.21077726]
[1633121097179,4.8186,3283.3,3283.0,0.20474711]
[1633121097381,0.88315445,3283.1,3283.0,0.21074711]
[1633121097579,0.88315445,3283.1,3283.0,0.20774711]
[1633121097781,0.88315445,3283.1,3283.0,0.21071171]
[1633121097979,0.88315445,3283.1,3283.0,0.21072398]
[1633121099580,0.88315445,3283.1,3283.0,0.006]
[1633121099981,0.88315445,3283.1,3282.3,0.009]
[1633121100182,0.88315445,3283.1,3282.4,4.56842]
[1633121100383,0.88315445,3283.1,3282.5,0.20468607]
[1633121100582,0.88315445,3283.1,3282.5,0.21368607]
[1633121100782,0.88315445,3283.1,3282.6,0.21069486]
[1633121100983,0.25,3283.3,3282.7,0.20468888]
[1633121101187,0.25,3283.3,3282.7,0.21068888]
[1633121101382,0.25,3283.3,3282.8,0.21066848]
[1633121101586,0.25,3283.3,3282.9,0.20467998]
[1633121101782,0.97081286,3283.1,3282.9,0.21067998]
[1633121101982,0.97081286,3283.1,3283.0,0.006]
[1633121102383,0.97081286,3283.1,3283.0,0.20467231]
[1633121102585,6.34213,3283.3,3282.6,0.20467361]
[1633121102784,6.34213,3283.3,3283.0,0.006]
[1633121102983,6.34213,3283.3,3282.7,0.006]
[1633121103184,0.25,3283.3,3282.8,0.20468622]
[1633121103582,0.95482933,3283.2,3282.9,0.006]
[1633121103982,0.95482933,3283.2,3282.3,0.009]
[1633121104182,0.95482933,3283.2,3282.4,0.21367181]
[1633121104384,0.95482933,3283.2,3282.5,0.20468984]
[1633121104584,0.95482933,3283.2,3282.5,0.21368984]
[1633121104782,0.95482933,3283.2,3282.6,0.21064138]
[1633121104982,5.52365933,3283.2,3282.7,0.20466133]
[1633121105183,5.52365933,3283.2,3282.7,0.21066133]
[1633121105384,5.52365933,3283.2,3282.8,0.006]
[1633121105582,3.04629,3283.0,3282.8,0.006]
[1633121105782,0.182,3283.0,3282.8,0.006]
[1633121108990,0.182,3283.0,3282.5,0.009]
[1633121109184,0.182,3283.0,3282.6,0.20452415]
[1633121109584,0.182,3283.0,3282.7,0.006]
[1633121109985,4.5691,3282.9,3282.7,0.006]
[1633121110185,4.5691,3282.9,3282.5,0.009]
[1633121110387,4.5691,3282.9,3282.6,0.20449383]
[1633121110787,4.5691,3282.9,3282.7,0.006]
[1633121111386,4.5691,3282.9,3282.4,0.009]
[1633121111594,4.5691,3282.9,3282.5,0.20450671]
[1633121111787,0.182,3282.8,3282.5,0.20450671]
[1633121111986,0.182,3282.8,3282.6,0.006]
[1633121112586,0.182,3282.8,3282.4,0.009]
[1633121113388,0.182,3282.8,3282.5,0.90767659]
[1633121113787,0.182,3282.8,3282.6,0.006]
[1633121114193,0.182,3282.8,3282.4,0.009]
[1633121114389,0.182,3282.8,3282.5,0.20452456]
[1633121114789,0.182,3282.8,3282.6,0.006]
[1633121114988,1.10741608,3282.8,3282.6,0.006]
[1633121115389,0.182,3282.8,3282.4,0.009]
[1633121116795,4.75128,3282.8,3282.4,0.009]
[1633121116991,0.182,3282.8,3282.4,0.009]
[1633121117792,4.7512,3282.8,3282.4,0.009]
[1633121118093,0.053818,3282.7,3282.4,0.009]
[1633121118292,0.182,3282.6,3282.4,0.009]
[1633121119295,4.75266,3282.6,3282.4,0.009]
[1633121119892,2.58391527,3282.5,3282.4,0.009]
[1633121120094,0.38916672,3282.5,3282.4,0.009]
[1633121120396,0.38916672,3282.5,3280.6,0.006]
[1633121120397,0.81833984,3281.8,3280.6,0.006]
[1633121120594,0.93502175,3282.0,3280.6,0.006]
[1633121120595,0.182,3281.7,3281.2,0.88630861]
[1633121120797,0.5544,3281.7,3281.2,0.006]
[1633121120993,0.054659,3281.5,3281.2,0.006]
[1633121121195,0.02427208,3281.3,3281.2,0.006]
[1633121121394,4.77859208,3281.3,3281.2,0.006]
[1633121121596,4.90499208,3281.3,3281.2,0.006]
[1633121121996,5.75114388,3281.3,3281.2,0.006]
[1633121122209,5.74874388,3281.3,3281.2,0.006]
[1633121122399,5.75834388,3281.3,3281.2,0.006]
[1633121122596,5.75834388,3281.3,3280.9,0.006]
[1633121122798,31.57771065,3281.3,3280.9,0.006]
[1633121122997,31.57771065,3281.3,3280.7,0.006]
[1633121122998,0.2339656,3281.0,3280.7,0.006]
[1633121123198,14.32577833,3280.7,3280.4,0.006]
[1633121123398,6.80961572,3280.5,3280.4,0.006]
[1633121123597,9.50638859,3280.3,3279.9,0.006]
[1633121123796,4.97797068,3280.3,3279.9,0.006]
[1633121123998,5.11797068,3280.3,3279.9,0.006]
[1633121124406,0.3170054,3279.9,3279.5,0.009]
[1633121124599,0.182,3279.8,3279.5,0.009]
[1633121124800,0.3164,3279.8,3279.5,4.58192]
[1633121124998,0.25,3280.2,3279.5,4.58192]
[1633121124999,0.0574,3280.2,3279.5,4.58192]
[1633121125207,0.003,3280.5,3279.6,2.60458573]
[1633121125401,0.003,3280.5,3279.5,0.009]
[1633121125402,0.003,3280.5,3280.1,1.8286184]
[1633121125799,0.003,3280.5,3280.2,4.57187]
[1633121126399,0.003,3280.5,3280.0,2.0]
[1633121126602,0.182,3280.4,3280.0,2.0]
[1633121127401,0.84406924,3280.2,3280.0,2.0]
[1633121127601,0.182,3280.1,3280.0,2.0]
[1633121129403,0.3012,3280.1,3280.0,2.0]
[1633121129612,0.31,3280.1,3280.0,2.0]
[1633121130003,0.314,3280.1,3280.0,2.0]
[1633121130204,0.3036,3280.1,3280.0,2.0]
[1633121130405,0.3052,3280.1,3280.0,2.0]
[1633121130806,0.3028,3280.1,3280.0,2.0]
[1633121131009,0.302,3280.1,3280.0,2.0]
[1633121131210,0.33,3280.1,3280.0,2.0]
[1633121131608,0.302,3280.1,3280.0,2.0]
[1633121131808,0.2996,3280.1,3280.0,2.0]
[1633121132010,0.2988,3280.1,3280.0,2.0]
[1633121132410,0.182,3280.1,3280.0,2.0]
[1633121132611,1.78829579,3280.1,3280.0,2.0]
[1633121132810,1.79309579,3280.1,3280.0,2.0]
[1633121133209,1.78669579,3280.1,3280.0,2.0]
[1633121133610,1.78749579,3280.1,3280.0,2.0]
[1633121133811,0.306,3280.1,3280.0,2.0]
[1633121134010,0.3108,3280.1,3280.0,2.0]
[1633121134411,0.3124,3280.1,3280.0,2.0]
[1633121135012,0.3132,3280.1,3280.0,2.0]
[1633121135614,0.3148,3280.1,3280.0,2.0]
[1633121135812,0.318,3280.1,3280.0,2.0]
[1633121136011,0.318,3280.1,3279.5,0.009]
[1633121136214,0.318,3280.1,3279.0,0.00706]
[1633121136215,0.0574,3279.2,3279.0,0.00706]
[1633121136415,0.20714292,3279.1,3279.0,0.00706]
[1633121136812,0.3444,3279.1,3279.0,0.00706]
[1633121137213,0.3228,3279.1,3279.0,0.8529461]
[1633121137417,0.182,3279.1,3279.0,0.8529461]
[1633121138012,0.182,3279.1,3279.0,0.89460513]
[1633121138282,0.182,3279.1,3279.0,2.18860513]
[1633121138414,0.182,3279.1,3279.0,0.89460513]
[1633121139614,0.182,3279.1,3279.0,0.84460513]
[1633121140215,0.182,3279.1,3278.9,0.006]
[1633121140814,0.18283927,3279.1,3278.9,0.006]
[1633121141215,0.18283927,3279.1,3278.9,0.84273773]
[1633121141617,0.18283927,3279.1,3279.0,11.044]
[1633121141818,0.00083927,3279.1,3279.0,1.294]
[1633121146620,0.00083927,3279.1,3279.0,0.794]
[1633121146819,0.00083927,3279.1,3278.9,2.05080806]
[1633121147019,0.00083927,3279.1,3279.0,1.294]
[1633121147619,0.00083927,3279.1,3279.0,1.244]
[1633121147823,0.00083927,3279.1,3278.9,2.05080806]
[1633121148019,0.00083927,3279.1,3279.0,1.294]
[1633121151426,0.00167854,3279.1,3279.0,1.294]
[1633121152825,0.04858214,3279.2,3279.0,1.294]
[1633121153029,0.04858214,3279.2,3279.1,5.86664]
[1633121153224,0.04858214,3279.2,3279.1,4.57264]
[1633121154027,0.04858214,3279.2,3279.1,5.86664]
[1633121155028,0.04858214,3279.2,3279.1,5.81664]
[1633121161133,0.1152,3280.8,3279.2,12.6]
[1633121161338,0.003,3281.0,3280.3,0.026371]
[1633121161339,0.253,3281.0,3280.3,0.026371]
[1633121161535,0.253,3281.0,3280.3,1.170071]
[1633121161734,0.253,3281.0,3280.4,5.65485083]
[1633121161932,0.003,3281.0,3280.5,1.91999068]
[1633121162132,0.003,3281.0,3280.8,0.3046722]
[1633121162334,0.003,3281.0,3280.9,8.444]
[1633121162534,0.003,3281.0,3280.9,5.86402]
[1633121162733,0.003,3281.0,3280.9,1.294]
[1633121162933,0.003,3281.0,3280.8,6.09336]
[1633121163133,0.003,3281.0,3280.9,6.7251835]
[1633121163333,0.003,3281.0,3280.8,6.3980318]
[1633121163536,0.003,3281.0,3280.9,7.38742]
[1633121163735,0.003,3281.0,3280.9,6.09342]
[1633121163934,0.003,3281.0,3280.5,1.70198416]
[1633121163935,0.003,3281.0,3280.5,0.82233187]
[1633121164136,0.003,3281.0,3280.0,0.03749896]
[1633121164137,0.053472,3280.9,3280.0,0.03749896]
[1633121164335,0.053472,3280.9,3280.0,0.003]
[1633121164737,0.182,3280.8,3279.9,0.003]
[1633121164933,0.182,3280.8,3280.0,0.94657352]
[1633121164934,3.04881,3280.6,3280.0,0.94657352]
[1633121165135,3.04881,3280.6,3279.7,0.003]
[1633121165136,0.86578103,3280.3,3279.7,0.84634352]
[1633121165403,0.86578103,3280.3,3280.0,0.003]
[1633121165606,0.86578103,3280.3,3279.8,0.003]
[1633121166008,0.86578103,3280.3,3279.1,0.006]
[1633121166606,2.77209499,3280.2,3279.1,0.006]
[1633121167005,4.57426,3279.7,3279.0,0.009]
[1633121167206,0.182,3279.9,3279.0,0.009]
[1633121167805,0.1256,3280.2,3279.1,0.182]
[1633121168010,1.9339446,3279.7,3279.0,0.009]
[1633121168207,1.294,3279.4,3279.2,0.006]
[1633121168408,1.9873576,3279.7,3279.2,0.006]
[1633121168607,0.96616866,3279.6,3279.0,0.009]
[1633121168813,0.1224,3279.3,3279.0,0.009]
[1633121169008,1.27136866,3279.6,3279.0,0.009]
[1633121169207,1.294,3279.3,3279.0,0.009]
[1633121169411,10.655429,3279.1,3278.8,0.006]
[1633121169608,0.182,3279.0,3278.8,0.006]
[1633121169807,1.7691,3279.0,3278.8,0.006]
[1633121170007,1.16004231,3278.9,3278.8,0.006]
[1633121170209,1.34204231,3278.9,3278.8,0.006]
[1633121170408,2.62484231,3278.9,3278.8,0.006]
[1633121170609,2.63604231,3278.9,3278.8,0.006]
[1633121170806,2.64244231,3278.9,3278.8,0.006]
[1633121171207,2.64084231,3278.9,3278.8,0.006]
[1633121171410,2.62164231,3278.9,3278.8,0.006]
[1633121171607,2.63124231,3278.9,3278.8,0.006]
[1633121172008,2.63444231,3278.9,3278.8,0.006]
[1633121172208,2.63844231,3278.9,3278.8,0.006]
[1633121172409,2.64084231,3278.9,3278.8,0.006]
[1633121172809,2.63044231,3278.9,3278.8,0.006]
[1633121173009,2.64084231,3278.9,3278.8,0.006]
[1633121173609,2.63844231,3278.9,3278.8,0.006]
[1633121173810,2.63284231,3278.9,3278.8,0.006]
[1633121174017,2.62964231,3278.9,3278.8,0.006]
[1633121174410,2.63124231,3278.9,3278.8,0.006]
[1633121174611,2.63044231,3278.9,3278.8,0.006]
[1633121174809,2.62884231,3278.9,3278.8,3.2311]
[1633121175209,2.63044231,3278.9,3278.8,3.2311]
[1633121175411,2.63284231,3278.9,3278.8,3.2311]
[1633121175609,2.62804231,3278.9,3278.8,3.2311]
[1633121176009,2.63044231,3278.9,3278.8,3.2311]
[1633121176212,2.62484231,3278.9,3278.8,3.2311]
[1633121176411,2.62644231,3278.9,3278.8,3.2311]
[1633121176810,2.62484231,3278.9,3278.8,3.2311]
[1633121177214,2.61924231,3278.9,3278.8,3.2311]
[1633121177610,4.03124231,3278.9,3278.8,3.2311]
[1633121177812,1.7276,3278.9,3278.8,3.2311]
[1633121178012,1.7156,3278.9,3278.8,3.2311]
[1633121178411,1.7028,3278.9,3278.8,3.2311]
[1633121178610,1.582,3278.9,3278.8,3.2311]
[1633121178811,2.51058283,3278.9,3278.8,3.2311]
[1633121179216,2.51858283,3278.9,3278.8,3.2311]
[1633121179414,2.51138283,3278.9,3278.8,3.2311]
[1633121179611,2.51938283,3278.9,3278.8,3.2311]
[1633121180014,2.50978283,3278.9,3278.8,3.2311]
[1633121180211,2.38978283,3278.9,3278.8,3.2311]
[1633121180411,2.50818283,3278.9,3278.8,3.1811]
[1633121180812,2.51538283,3278.9,3278.8,3.1811]
[1633121181010,2.51218283,3278.9,3278.8,3.1811]
[1633121181210,2.51298283,3278.9,3278.8,3.1811]
[1633121181815,2.51218283,3278.9,3278.8,3.1811]
[1633121182011,3.80698283,3278.9,3278.8,3.1811]
[1633121182214,2.51298283,3278.9,3278.8,2.428]
[1633121182417,1.7108,3278.9,3278.8,2.428]
[1633121182613,1.7036,3278.9,3278.8,2.378]
[1633121182814,1.582,3278.9,3278.8,2.378]
[1633121183014,1.582,3278.9,3278.8,3.27266147]
[1633121183213,1.7036,3278.9,3278.7,0.006]
[1633121183414,1.7052,3278.9,3278.7,0.006]
[1633121183613,1.5232,3278.9,3278.7,0.006]
[1633121183814,1.4,3278.9,3278.7,0.006]
[1633121184418,1.4,3278.9,3278.8,1.0742504]
[1633121187021,1.4,3278.9,3278.8,2.3682504]
[1633121187417,1.4,3278.9,3278.8,6.9414804]
[1633121187617,0.003,3280.0,3279.9,12.73757479]
[1633121188218,0.003,3280.0,3279.9,14.03157479]
[1633121188617,0.003,3280.5,3279.9,19.07629239]
[1633121188816,0.003,3280.5,3280.3,0.026371]
[1633121189017,0.003,3280.5,3280.4,0.182]
[1633121189216,0.003,3280.5,3280.4,1.476]
[1633121189621,0.003,3280.5,3280.4,6.04633]
[1633121189817,0.003,3280.5,3280.4,7.79538006]
[1633121191419,0.003,3280.5,3280.4,7.98961843]
[1633121191618,0.003,3280.5,3280.4,7.79538006]
[1633121192420,0.003,3280.5,3280.4,7.98990255]
[1633121194620,0.003,3280.5,3280.4,8.02896281]
[1633121195620,0.003,3280.5,3280.4,6.73496281]
[1633121196220,0.003,3280.5,3280.4,1.98263281]
[1633121196421,0.003,3280.5,3280.4,1.74905006]
[1633121196821,0.003,3280.5,3280.4,3.04305006]
[1633121197021,0.003,3280.5,3280.4,1.74905006]
[1633121197222,0.003,3280.5,3280.4,1.94406711]
[1633121197622,0.003,3281.5,3280.5,0.3047071]
[1633121197823,0.003,3281.5,3280.6,0.19501368]
[1633121198122,0.003,3281.5,3280.6,0.37701368]
[1633121198322,0.003,3281.5,3280.7,0.19498188]
[1633121198522,0.003,3281.5,3280.6,0.182]
[1633121198726,0.003,3281.5,3281.2,1.18238673]
[1633121198924,0.003,3281.5,3281.4,0.86100954]
[1633121199524,0.003,3281.5,3281.4,3.80730954]
[1633121199725,0.003,3281.5,3281.4,3.98930954]
[1633121199933,0.003,3281.5,3281.4,4.21607157]
[1633121200325,0.003,3281.5,3281.4,8.78610157]
[1633121200527,0.003,3281.5,3281.4,16.03375918]
[1633121200725,0.003,3281.5,3281.4,16.03372504]
[1633121200924,0.003,3281.5,3281.4,15.26437349]
[1633121201126,0.003,3282.0,3281.5,14.54782987]
[1633121201325,0.003,3282.0,3281.6,23.13645579]
[1633121201525,0.003,3282.0,3281.8,4.56778]
[1633121201725,0.003,3282.0,3281.9,0.182]
[1633121201924,1.462,3282.3,3281.9,1.07876966]
[1633121202126,1.462,3282.3,3282.0,1.18012943]
[1633121203725,1.462,3282.3,3282.0,2.87322943]
[1633121204125,1.462,3282.3,3282.1,1.294]
[1633121204326,1.462,3282.3,3282.0,2.87322943]
[1633121205326,1.462,3282.3,3282.1,4.56867]
[1633121206529,1.462,3282.3,3282.2,1.294]
[1633121206930,1.412,3282.3,3282.2,1.294]
[1633121207331,1.412,3282.3,3282.2,2.9226324]
[1633121207532,1.412,3282.3,3282.2,20.6826324]
[1633121207735,1.412,3282.3,3282.2,2.9226324]
[1633121207931,1.412,3282.3,3282.2,3.9326324]
[1633121208131,1.412,3282.3,3282.2,26.71805893]
[1633121208930,1.362,3282.3,3282.2,26.71805893]
[1633121209132,0.044793,3283.2,3282.9,1.95432266]
[1633121209434,0.044793,3283.2,3282.9,8.46359365]
[1633121209631,0.044793,3283.2,3282.9,9.78127099]
[1633121209830,0.044793,3283.2,3282.9,5.67807977]
[1633121210231,0.044793,3283.2,3282.9,6.86162154]
[1633121211032,0.044793,3283.2,3282.9,2.29562154]
[1633121213834,0.044793,3283.2,3282.5,9.13318]
[1633121214034,0.044793,3283.2,3282.4,0.182]
[1633121214834,0.044793,3283.2,3282.5,0.98544042]
[1633121215034,0.044793,3283.2,3282.7,4.56759]
[1633121215236,0.044793,3283.2,3282.7,9.56759]
[1633121215437,0.044793,3283.2,3282.7,9.60263944]
[1633121215834,0.044793,3283.2,3282.8,0.90906687]
[1633121216034,0.044793,3283.2,3282.9,4.56766]
[1633121216435,0.044793,3283.2,3282.8,0.90906687]
[1633121216834,0.044793,3283.2,3282.6,6.12198391]
[1633121217637,0.000793,3283.5,3282.9,3.5]
[1633121217837,0.000793,3283.5,3283.3,1.06711525]
[1633121218438,0.000793,3283.5,3283.4,0.79181022]
[1633121221040,0.000793,3283.5,3283.4,2.08581022]
[1633121221242,0.000793,3283.5,3283.4,24.84581022]
[1633121221441,0.000793,3283.5,3283.4,0.79181022]
[1633121223446,0.000793,3283.5,3283.3,5.66983562]
[1633121225743,0.000793,3283.5,3283.4,0.83323151]
[1633121226144,0.000793,3283.5,3283.3,5.66983562]
[1633121227145,0.000793,3283.5,3283.4,0.93662411]
[1633121228748,0.000793,3283.5,3283.3,5.66983562]
[1633121229347,0.000793,3283.5,3283.3,4.56721]
[1633121229548,0.000793,3283.5,3282.9,3.04433]
[1633121229549,1.294,3283.4,3282.5,0.003]
[1633121229747,0.182793,3283.5,3282.5,0.003]
[1633121229748,0.055123,3283.1,3282.5,0.003]
[1633121229948,0.182,3283.0,3282.5,0.003]
[1633121230146,0.182,3283.0,3282.4,0.003]
[1633121230348,0.182,3283.0,3282.1,1.09642831]
[1633121230548,0.182,3283.0,3282.1,0.003]
[1633121230747,0.182,3283.0,3282.2,0.003]
[1633121230748,0.05676,3282.4,3282.2,0.003]
[1633121230950,0.182,3282.3,3282.2,0.003]
[1633121231154,0.182,3282.3,3281.6,0.92415691]
[1633121231414,0.182,3282.3,3281.7,0.006]
[1633121231614,0.182,3282.3,3282.1,1.04258327]
[1633121231818,0.182,3282.3,3281.7,4.57557]
[1633121232013,0.182,3282.3,3282.2,0.96552208]
[1633121232217,1.476,3282.3,3281.8,0.006]
[1633121232418,1.476,3282.3,3281.0,0.003]
[1633121232419,3.63513817,3281.4,3281.0,0.003]
[1633121232616,3.63513817,3281.4,3280.5,0.006]
[1633121232617,0.10477897,3281.1,3280.5,0.006]
[1633121232815,4.57261,3280.8,3280.4,0.006]
[1633121233014,4.462696,3280.5,3280.4,0.006]
[1633121233217,1.442296,3280.5,3280.4,0.006]
[1633121233415,1.3796,3280.5,3280.4,0.006]
[1633121233615,1.6984,3280.5,3280.4,0.006]
[1633121233819,1.6864,3280.5,3280.4,0.006]
[1633121234017,1.5616,3280.5,3280.4,1.21498451]
[1633121234215,0.182,3280.5,3280.4,1.21498451]
[1633121234620,0.234991,3280.5,3280.4,0.006]
[1633121234817,1.528991,3280.5,3280.4,0.006]
[1633121235218,1.654591,3280.5,3280.4,0.006]
[1633121235418,7.448981,3280.5,3280.4,0.006]
[1633121235817,7.463381,3280.5,3280.4,0.006]
[1633121236020,7.463381,3280.5,3280.1,0.006]
[1633121236021,7.457781,3280.5,3280.1,0.006]
[1633121236225,6.178981,3280.5,3280.1,0.006]
[1633121236425,4.57375,3280.2,3280.1,0.006]
[1633121236620,4.75575,3280.2,3280.1,0.006]
[1633121236820,5.66218902,3280.2,3280.1,0.006]
[1633121237122,10.35998902,3280.2,3280.1,0.006]
[1633121237323,10.36798902,3280.2,3280.1,0.006]
[1633121237521,11.66198902,3280.2,3280.1,0.006]
[1633121237723,11.66118902,3280.2,3280.1,0.006]
[1633121237922,11.65558902,3280.2,3280.1,0.006]
[1633121238122,11.65398902,3280.2,3280.1,0.006]
[1633121238323,9.45355,3280.2,3280.1,0.006]
[1633121238522,4.8726,3280.2,3280.1,0.006]
[1633121238722,4.8646,3280.2,3280.1,0.006]
[1633121238930,4.8558,3280.2,3280.1,0.006]
[1633121239324,4.8542,3280.2,3280.1,0.006]
[1633121239525,4.731,3280.2,3280.1,0.006]
[1633121239724,4.8534,3280.2,3280.1,0.006]
[1633121240125,4.8574,3280.2,3280.1,0.006]
[1633121240325,4.855,3280.2,3280.1,0.006]
[1633121240728,4.8638,3280.2,3280.1,0.006]
[1633121240924,4.8662,3280.2,3280.1,0.006]
[1633121241125,4.8646,3280.2,3280.1,0.006]
[1633121241925,6.1594,3280.2,3280.1,0.006]
[1633121242127,6.1546,3280.2,3280.1,0.006]
[1633121242326,4.8606,3280.2,3280.1,0.006]
[1633121242727,4.8582,3280.2,3280.1,0.006]
[1633121242928,4.8598,3280.2,3280.1,0.006]
[1633121243328,4.8574,3280.2,3280.1,0.006]
[1633121243530,4.8614,3280.2,3280.1,0.006]
[1633121243727,4.855,3280.2,3280.1,0.006]
[1633121244131,4.8614,3280.2,3280.1,0.006]
[1633121244328,4.855,3280.2,3280.1,0.006]
[1633121244527,4.8558,3280.2,3280.1,0.006]
[1633121244927,4.855,3280.2,3280.1,0.006]
[1633121245128,4.8574,3280.2,3280.1,0.006]
[1633121245528,4.8518,3280.2,3280.1,0.006]
[1633121245727,4.8526,3280.2,3280.1,0.006]
[1633121245927,4.8582,3280.2,3280.1,0.006]
[1633121246328,6.149,3280.2,3280.1,0.006]
[1633121246529,8.1929052,3280.2,3280.1,0.006]
[1633121246734,8.2049052,3280.2,3280.1,0.006]
[1633121247131,8.2201052,3280.2,3280.1,0.006]
[1633121247331,8.2193052,3280.2,3280.1,0.006]
[1633121247532,8.2169052,3280.2,3280.1,0.006]
[1633121247933,8.2129052,3280.2,3280.1,0.006]
[1633121248131,8.2081052,3280.2,3280.1,0.006]
[1633121248332,8.2017052,3280.2,3280.1,0.006]
[1633121248731,8.2025052,3280.2,3280.1,0.006]
[1633121248931,8.2033052,3280.2,3280.1,0.006]
[1633121249336,8.2105052,3280.2,3280.1,0.006]
[1633121249532,6.9101052,3280.2,3280.1,0.006]
[1633121249731,5.7457052,3280.2,3280.1,0.006]
[1633121250130,5.7465052,3280.2,3280.1,0.006]
[1633121250332,5.7353052,3280.2,3280.1,0.006]
[1633121250532,5.7401052,3280.2,3280.1,0.006]
[1633121250932,7.0349052,3280.2,3280.1,0.006]
[1633121251132,1.44605774,3280.1,3280.0,0.009]
[1633121251335,1.62805774,3280.1,3280.0,0.009]
[1633121251733,1.76965774,3280.1,3280.0,0.009]
[1633121251941,0.326,3280.1,3280.0,0.009]
[1633121252137,0.33,3280.1,3280.0,0.009]
[1633121252537,0.3172,3280.1,3280.0,0.009]
[1633121252738,0.3164,3280.1,3280.0,0.009]
[1633121253136,0.31,3280.1,3280.0,0.009]
[1633121253337,0.314,3280.1,3280.0,0.009]
[1633121253536,0.3124,3280.1,3280.0,0.009]
[1633121253739,1.09427417,3280.1,3280.0,0.009]
[1633121253939,1.09507417,3280.1,3280.0,0.009]
[1633121254137,1.09667417,3280.1,3280.0,0.009]
[1633121254339,1.08867417,3280.1,3280.0,0.009]
[1633121254937,5.66409417,3280.1,3280.0,0.009]
[1633121255139,1.09667417,3280.1,3280.0,0.009]
[1633121255338,0.3148,3280.1,3280.0,0.009]
[1633121255538,0.306,3280.1,3280.0,0.009]
[1633121255738,0.31,3280.1,3280.0,0.009]
[1633121255938,0.182,3280.1,3280.0,0.009]
[1633121256339,1.19855871,3280.1,3280.0,0.009]
[1633121256538,1.07855871,3280.1,3280.0,0.009]
[1633121256737,1.19775871,3280.1,3280.0,0.009]
[1633121257143,1.07855871,3280.1,3280.0,0.009]
[1633121257340,0.182,3280.1,3280.0,0.009]
[1633121257941,0.3068,3280.1,3280.0,0.009]
[1633121258142,0.302,3280.1,3280.0,0.009]
[1633121258341,0.182,3280.1,3280.0,0.009]
[1633121258544,0.182,3280.1,3280.0,1.03586631]
[1633121258741,0.3076,3280.1,3280.0,0.009]
[1633121258941,0.3052,3280.1,3280.0,0.009]
[1633121259141,0.182,3280.1,3280.0,0.009]
[1633121259647,0.31,3280.5,3280.0,1.303]
[1633121259841,0.31,3280.5,3280.4,0.82722997]
[1633121260041,0.31,3280.5,3280.0,0.009]
[1633121260042,0.182,3280.5,3280.0,0.009]
[1633121260844,0.1176,3280.4,3280.0,0.009]
[1633121261043,0.82975259,3280.4,3280.0,0.009]
[1633121261643,0.1232,3280.6,3280.0,0.009]
[1633121262043,0.21853435,3280.5,3280.0,0.009]
[1633121263246,0.21853435,3280.5,3280.1,3.04796]
[1633121263446,0.21853435,3280.5,3280.2,4.57192]
[1633121263645,0.21853435,3280.5,3280.2,5.37422548]
[1633121263845,0.21853435,3280.5,3280.3,1.05841026]
[1633121264646,0.21853435,3280.5,3280.3,5.63019026]
[1633121265249,0.21853435,3280.5,3280.4,1.294]
[1633121266246,0.21853435,3280.6,3280.4,1.294]
[1633121266446,0.21853435,3280.6,3280.3,5.63019026]
[1633121266648,0.21853435,3280.6,3280.4,1.294]
[1633121266847,0.21853435,3280.6,3280.3,5.63019026]
[1633121268048,0.21853435,3280.6,3280.4,1.294]
[1633121268248,0.21853435,3280.6,3280.3,1.05841026]
[1633121269251,0.21853435,3280.6,3280.4,5.86566]
[1633121269451,0.21853435,3280.6,3280.4,4.57166]
[1633121270456,0.21853435,3280.6,3280.0,0.009]
[1633121271254,0.33453435,3280.6,3280.0,0.009]
[1633121271456,0.87016507,3280.5,3280.1,1.11364297]
[1633121271755,0.33693435,3280.6,3280.1,1.11364297]
[1633121271955,0.33293435,3280.6,3280.1,1.11364297]
[1633121272155,0.21853435,3280.4,3280.1,1.11364297]
[1633121273554,0.21853435,3280.4,3280.1,1.06364297]
[1633121274155,0.21853435,3280.4,3280.1,1.01364297]
[1633121275158,0.21853435,3280.6,3280.1,1.01364297]
[1633121276956,0.21853435,3280.6,3280.1,5.58568297]